Workbook

Sheet Utgiftsrapport
A1: FIRMANAVN
A2: UTGIFTSRAPPORT
B4: ANSATT: | C4: Karen Berg | G4: GODKJENT AV:
B5: AVDELING: | C5: Salg
B6: UKEN SLUTTER: | C6: 2013-03-07 | G6: DATO:
B7: KILOMETERSATS: | C7: kr 0.67
C9: =UPPER(TEXT(C10,"dddd")) -> FREDAG | D9: =UPPER(TEXT(D10,"dddd")) -> LØRDAG | E9: SØNDAG | F9: MANDAG | G9: TIRSDAG | H9: ONSDAG | I9: TORSDAG
B10: TRANSPORT | C10: =Ukeslutt-6 -> 2013-03-01 | D10: =Ukeslutt-5 -> 2013-03-02 | E10: =Ukeslutt-4 -> 2013-03-03 | F10: =Ukeslutt-3 -> 2013-03-04 | G10: =Ukeslutt-2 -> 2013-03-05 | H10: =Ukeslutt-1 -> 2013-03-06 | I10: =Ukeslutt -> 2013-03-07 | J10: TOTALT
B11: Kjørte km | C11: 145 | J11: =SUM(Transport[[#This Row],[Dag 1]:[Dag 7]]) -> 145
B12: Km-godtgjørelse | C12: =C11*Kilometersats -> kr 97.15 | D12: kr 0.00 | E12: kr 0.00 | F12: kr 0.00 | G12: kr 0.00 | H12: kr 0.00 | I12: kr 0.00 | J12: =SUM(Transport[[#This Row],[Dag 1]:[Dag 7]]) -> kr 97.15
B13: Parkering og avgifter | F13: kr 17.00 | J13: =SUM(Transport[[#This Row],[Dag 1]:[Dag 7]]) -> kr 17.00
B14: Leiebil | C14: kr 79.00 | F14: kr 79.00 | J14: =SUM(Transport[[#This Row],[Dag 1]:[Dag 7]]) -> kr 158.00
B15: Drosje /transport | J15: =SUM(Transport[[#This Row],[Dag 1]:[Dag 7]]) -> kr 0.00
B16: Annet (tog eller buss) | J16: =SUM(Transport[[#This Row],[Dag 1]:[Dag 7]]) -> kr 0.00
B17: Flybillett | F17: kr 235.00 | J17: =SUM(Transport[[#This Row],[Dag 1]:[Dag 7]]) -> kr 235.00
B18: TOTALT | C18: =SUBTOTAL(109,C12:C17) -> kr 176.15 | D18: =SUBTOTAL(109,D12:D17) -> kr 0.00 | F18: =SUBTOTAL(109,F12:F17) -> kr 331.00 | G18: =SUBTOTAL(109,G12:G17) -> kr 0.00 | H18: =SUBTOTAL(109,H12:H17) -> kr 0.00 | I18: =SUBTOTAL(109,I12:I17) -> kr 0.00 | J18: =SUM(J12:J17) -> kr 507.15
B21: OVERNATTING OG MÅLTIDER
B22: Overnatting | C22: kr 145.00 | J22: =SUM(OvernattingMåltider[[#This Row],[Dag 1]:[Dag 7]]) -> kr 145.00
B23: Frokost | C23: kr 11.49 | J23: =SUM(OvernattingMåltider[[#This Row],[Dag 1]:[Dag 7]]) -> kr 11.49
B24: Lunsj | C24: kr 12.00 | J24: =SUM(OvernattingMåltider[[#This Row],[Dag 1]:[Dag 7]]) -> kr 12.00
B25: Middag | C25: kr 17.00 | J25: =SUM(OvernattingMåltider[[#This Row],[Dag 1]:[Dag 7]]) -> kr 17.00
B26: Mellommåltid | C26: =C25*Kilometersats -> kr 11.39 | J26: =SUM(OvernattingMåltider[[#This Row],[Dag 1]:[Dag 7]]) -> kr 11.39
B27: Måltider totalt | C27: =SUM(C23:C25) -> kr 40.49 | D27: =SUM(D23:D25) -> kr 0.00 | E27: kr 0.00 | F27: kr 0.00 | G27: kr 0.00 | H27: kr 0.00 | I27: kr 0.00 | J27: =SUM(OvernattingMåltider[[#This Row],[Dag 1]:[Dag 7]]) -> kr 40.49
B28: TOTALT | C28: =SUBTOTAL(109,C22,C27) -> kr 185.49 | D28: kr 0.00 | E28: kr 0.00 | F28: kr 0.00 | G28: kr 0.00 | H28: kr 0.00 | I28: kr 0.00 | J28: kr 185.49
B31: DIVERSE
B32: Materiell | J32: =SUM(Div.[[#This Row],[Dag 1]:[Dag 7]]) -> kr 0.00
B33: Utstyr | J33: =SUM(Div.[[#This Row],[Dag 1]:[Dag 7]]) -> kr 0.00
B34: Telefon, faks, Internett | J34: =SUM(Div.[[#This Row],[Dag 1]:[Dag 7]]) -> kr 0.00
B35: Annet* | J35: =SUM(Div.[[#This Row],[Dag 1]:[Dag 7]]) -> kr 0.00
B36: Underholdning* | F36: kr 199.00 | J36: =SUM(Div.[[#This Row],[Dag 1]:[Dag 7]]) -> kr 199.00
B37: TOTALT | C37: =SUBTOTAL(109,Div.[Dag 1]) -> kr 0.00 | D37: =SUBTOTAL(109,Div.[Dag 2]) -> kr 0.00 | E37: =SUBTOTAL(109,Div.[Dag 3]) -> kr 0.00 | F37: =SUBTOTAL(109,Div.[Dag 4]) -> kr 199.00 | G37: =SUBTOTAL(109,Div.[Dag 5]) -> kr 0.00 | H37: =SUBTOTAL(109,Div.[Dag 6]) -> kr 0.00 | I37: =SUBTOTAL(109,Div.[Dag 7]) -> kr 0.00 | J37: =SUBTOTAL(109,Div.[Totalt]) -> kr 199.00
B40: TOTALSUMMER | C40: =SUM(Div.[[#Totals],[Dag 1]],OvernattingMåltider[[#Totals],[Dag 1]],Transport[[#Totals],[Dag 1]]) -> kr 361.64 | D40: =SUM(Div.[[#Totals],[Dag 2]],OvernattingMåltider[[#Totals],[Dag 2]],Transport[[#Totals],[Dag 2]]) -> kr 0.00 | E40: =SUM(Div.[[#Totals],[Dag 3]],OvernattingMåltider[[#Totals],[Dag 3]],Transport[[#Totals],[Dag 3]]) -> kr 0.00 | F40: =SUM(Div.[[#Totals],[Dag 4]],OvernattingMåltider[[#Totals],[Dag 4]],Transport[[#Totals],[Dag 4]]) -> kr 530.00 | G40: =SUM(Div.[[#Totals],[Dag 5]],OvernattingMåltider[[#Totals],[Dag 5]],Transport[[#Totals],[Dag 5]]) -> kr 0.00 | H40: =SUM(Div.[[#Totals],[Dag 6]],OvernattingMåltider[[#Totals],[Dag 6]],Transport[[#Totals],[Dag 6]]) -> kr 0.00 | I40: =SUM(Div.[[#Totals],[Dag 7]],OvernattingMåltider[[#Totals],[Dag 7]],Transport[[#Totals],[Dag 7]]) -> kr 0.00 | J40: =SUM(Div.[[#Totals],[Totalt]],OvernattingMåltider[[#Totals],[Totalt]],Transport[[#Totals],[Totalt]]) -> kr 891.64
J42: TOTALE UTGIFTER
B43: *Forretningsformål for "Underholdning" og "Annet": | J43: =SUM(J18,J28,J37) -> kr 891.64
J44: FORSKUDD
J46: REFUSJON TOTALT
J47: =J43-J45 -> kr 891.64
J48: Legg ved alle kvitteringer.
